fUSD/lending_fUSD_20240404
["ID","MTS","AMOUNT","RATE_DAILY","PERIOD"]
[321501855,1712249432327,-281.74744759,0.00029996,2]
[321501856,1712249432336,-156.97520715,0.00029996,2]
[321501857,1712249432345,-302.53791714,0.00029999,2]
[321501858,1712249432354,-205.65687305,0.0003,7]
[321501859,1712249432363,-230.53377267,0.0003,2]
[321501860,1712249432372,-3206.28076084,0.0003,2]
[321501861,1712249432381,-151.08998021,0.00030885,2]
[321501862,1712249432391,-14172.9,0.00030967,2]
[321501863,1712249432400,-1635.26,0.00031029,2]
[321501864,1712249432409,-500.0,0.00031062,2]
[321501865,1712249432418,-173.41,0.00031664,120]
[321501866,1712249432428,-250.0,0.00031789,2]
[321501867,1712249432437,-200.0,0.00031848,2]
[321501868,1712249432447,-549.34,0.00031877,2]
[321501869,1712249432457,-151.08998021,0.00031881,2]
[321501870,1712249432466,-601.88,0.00031962,2]
[321501871,1712249432475,-1232.0,0.00032,2]
[321501872,1712249432484,-500.0,0.00032241,2]
[321501873,1712249432494,-261.71950305,0.00032282,4]
[321501874,1712249432503,-184.48,0.00032465,2]
[321501875,1712249432513,-154.55,0.00032483,2]
[321501877,1712249432523,-3658.51,0.00032603,2]
[321501879,1712249432533,-174.14,0.00032619,2]
[321501881,1712249432543,-859.57814569,0.00032706,2]
[321501883,1712249432553,-23900.0,0.00032707,2]
[321501885,1712249432563,-15745.05,0.00032814,2]
[321501887,1712249432573,-500.0,0.00032875,2]
[321501889,1712249432584,-500.0,0.00032875,2]
[321501891,1712249432594,-500.0,0.00032875,2]
[321501892,1712249432604,-389.15548385,0.00032875,2]
[321501893,1712249432614,-500.0,0.00032875,2]
[321501894,1712249432625,-500.0,0.00032875,2]
[321501895,1712249432636,-500.0,0.00032875,2]
[321501896,1712249432646,-500.0,0.00032875,2]
[321501897,1712249432656,-156.25,0.00032877,2]
[321501898,1712249432667,-32375.8170637,0.00032877,2]
[321501899,1712249433296,-500.0,0.00032875,2]
[321501900,1712249433307,-320.13785412,0.00032877,2]
[321501901,1712249433319,-2275.21706025,0.00032877,2]
[321501902,1712249433331,-5107.80679493,0.00032877,2]
[321501903,1712249433365,-7739.771227,0.00032877,2]
[321501904,1712249433374,-150.0,0.00032877,2]
[321501905,1712249433384,-151.08998021,0.00032877,2]
[321501906,1712249433395,-250.0,0.00033069,2]
[321501907,1712249433404,-179.89989495,0.00033089,4]
[321501908,1712249433414,-264.98679253,0.00033091,4]
[321501909,1712249433424,-1635.26,0.00033293,2]
[321501910,1712249433435,-150.0,0.00033742,2]
[321501911,1712249433445,-250.0,0.00033805,2]
[321501912,1712249433456,-8079.54,0.00033805,2]
[321501913,1712249433469,-167.03,0.00033868,2]
[321501914,1712249433479,-151.08998021,0.00033874,2]
[321501915,1712249433489,-24761.82026596,0.00033881,2]
[321501916,1712249433500,-18167.90497233,0.00033882,2]
[321501917,1712249433510,-415.05337197,0.00033981,4]
[321501918,1712249433520,-484.97030359,0.00033981,4]
[321501919,1712249433531,-1398.88832862,0.00033981,4]
[321501920,1712249433540,-397.31916267,0.00033981,4]
[321501921,1712249433552,-3703.37018596,0.00033982,4]
[321501922,1712249433563,-154.55,0.00034175,2]
[321501923,1712249433573,-150.0,0.00034607,2]
[321501924,1712249433583,-151.08998021,0.0003487,2]
[321501925,1712249433593,-1000.0,0.00034939,2]
[321501926,1712249433602,-180.0,0.00035033,2]
[321501927,1712249433611,-150.0,0.00035472,2]
[321501928,1712249433620,-1635.26,0.00035557,2]
[321501929,1712249433631,-24761.82026587,0.00035646,2]
[321501930,1712249433642,-18167.90497228,0.00035647,2]
[321501931,1712249433652,-151.08998021,0.00035867,2]
[321501932,1712249433663,-441.09329125,0.00035998,7]
[321501933,1712249433674,-150.0,0.00036337,2]
[321501934,1712249433684,-167.12,0.00036508,2]
[321501935,1712249433695,-171.89,0.00036535,2]
[321501936,1712249433705,-8079.54,0.00036545,2]
[321501937,1712249433714,-155.0,0.00036769,4]
[321501938,1712249433723,-151.08998021,0.00036863,2]
[321501939,1712249433733,-372.27844674,0.00036863,8]
[321501940,1712249433742,-317.1498641,0.00036863,2]
[321501941,1712249433751,-403.52324426,0.0003689,2]
[321501942,1712249433761,-171.89,0.0003689,2]
[321501943,1712249433770,-11430.90320922,0.00036898,2]
[321501944,1712249433780,-484.15185705,0.00036899,15]
[321501945,1712249433789,-214.62570329,0.00036899,15]
[321501946,1712249433799,-8641.5993,0.000369,2]
[321501947,1712249433809,-292170.82536001,0.000369,2]
[321501948,1712249433821,-4299.08963738,0.000369,2]
[321501949,1712249433841,-3126.23716387,0.000369,2]
[321501950,1712249434158,-8658.91704567,0.000369,2]
[321501951,1712249434182,-457.0,0.00036897,2]
[321501952,1712249434194,-52.40422597,0.00036897,2]
[321501953,1712249434203,-34475.01159575,0.000369,2]
[321501954,1712249434215,-904.89901987,0.000369,2]
[321501960,1712249438117,-1477.183873,0.000369,2]
[321501961,1712249438128,-2535.08706433,0.000369,2]
[321501962,1712249438261,-838.86498246,0.000369,2]
[321501963,1712249438375,-232113.91505766,0.000369,2]
[321501964,1712249438384,-200.0,0.00036963,2]
[321501965,1712249438393,-1583.76511883,0.00037,2]
[321501966,1712249438403,-1047.88709222,0.00037,2]
[321501967,1712249438412,-56938.06135577,0.00037,2]
[321501968,1712249438421,-250.0,0.00037,3]
[321501969,1712249438431,-160.05,0.0003717,120]
[321501970,1712249438440,-150.0,0.00037203,2]
[321501971,1712249438450,-171.89,0.00037401,2]
[321501972,1712249438462,-24761.82026587,0.0003741,2]
[321501974,1712249438471,-18167.90497228,0.00037411,2]
[321501976,1712249438480,-169.63,0.00037415,2]
[321501978,1712249438489,-155.03,0.00037435,2]
[321501980,1712249438498,-150.0,0.00037457,120]
[321501982,1712249438507,-155.03,0.00037622,2]
[321501984,1712249438517,-1635.26,0.00037821,2]
[321501986,1712249438526,-167.12,0.00038015,2]
[321501988,1712249438535,-2115.57,0.00038027,15]
[321501990,1712249438544,-150.0,0.00038028,120]
[321501991,1712249438555,-150.0,0.00038068,2]
[321501994,1712249438565,-150.0,0.00038142,120]
[321501996,1712249438574,-654.23372226,0.00038187,10]
[321501997,1712249438583,-1997.0,0.00038356,2]
[321501999,1712249438592,-423.59,0.00038356,2]
[321502000,1712249438601,-317.14986405,0.00038357,2]
[321502001,1712249438610,-372.27844668,0.00038624,9]
[321502002,1712249438619,-169.63,0.00038738,2]
[321502003,1712249438628,-275.5,0.000389,2]
[321502004,1712249438638,-1000.0,0.00038904,120]
[321502005,1712249438647,-150.0,0.00038933,2]
[321502006,1712249438657,-1211.0,0.00039,4]
[321502007,1712249438666,-300.0,0.00039,3]
[321502008,1712249438676,-24761.82026587,0.00039175,2]
[321502009,1712249438685,-18167.90497228,0.00039176,2]
[321502010,1712249438695,-320.0,0.00039187,30]
[321502011,1712249438704,-150.0,0.00039187,2]
[321502012,1712249438714,-8622.84027666,0.00039187,3]
[321502013,1712249438723,-161.78661305,0.00039187,28]
[321502014,1712249438733,-8079.54,0.00039285,2]
[321502015,1712249438742,-1000.0,0.00039307,2]
[321502016,1712249438751,-167.0,0.0003945,2]
[321502017,1712249438761,-167.12,0.00039521,2]
[321502018,1712249438771,-3000.0,0.000396,24]
[321502019,1712249438780,-3000.0,0.0003961,24]
[321502020,1712249438789,-3000.0,0.0003962,24]
[321502021,1712249438799,-3000.0,0.0003963,24]
[321502022,1712249438808,-3000.0,0.0003964,24]
[321502023,1712249438817,-3397.4233,0.0003965,24]
[321502024,1712249438826,-184.84070755,0.00039678,13]
[321502025,1712249438836,-178.43911629,0.000397,13]
[321502026,1712249438846,-153.6205748,0.000397,5]
[321502027,1712249438855,-192.11652935,0.000397,2]
[321502028,1712249438865,-2203.6312,0.000397,120]
[321502029,1712249438874,-32221.7079,0.00039778,2]
[321502030,1712249438884,-7500.0,0.0003978,2]
[321502031,1712249438893,-697.3584703,0.0003979,31]
[321502032,1712249438902,-403.52324426,0.0003979,2]
[321502033,1712249438912,-171.89,0.0003979,2]
[321502034,1712249438922,-171.89,0.0003979,2]
[321502035,1712249438931,-509.40422597,0.00039797,2]
[321502036,1712249438940,-2801592.78995848,0.00039798,2]
[321502037,1712249438952,-1357.0932768,0.00039798,2]
[321502038,1712249439201,-19863.27298709,0.00039798,2]
[321502043,1712249440135,-2073.26176743,0.00039798,2]
[321502044,1712249440146,-2121.75002517,0.00039798,2]
[321502045,1712249440159,-1000.0,0.00039798,2]
[321502046,1712249440171,-10938.32107449,0.00039798,2]
[321502047,1712249440186,-1028.94021877,0.00039798,2]
[321502048,1712249440207,-1425.81415981,0.00039798,2]
[321502049,1712249440218,-635.79976949,0.00039798,2]
[321502050,1712249440230,-460.63094984,0.00039798,2]
[321502051,1712249440290,-157576.75766846,0.00039798,2]
[321502052,1712249440340,-1147.94373023,0.00039798,2]
[321502053,1712249440355,-3001.42345312,0.00039798,2]
[321502054,1712249440367,-1499.97790222,0.00039798,2]
[321502055,1712249440378,-119915.56516305,0.00039798,2]
[321502056,1712249440390,-458.68758806,0.00039798,2]
[321502057,1712249440405,-817.35821959,0.00039798,2]
[321502058,1712249440481,-523.82282623,0.00039798,2]
[321502059,1712249440501,-3199.24081583,0.00039798,2]
[321502060,1712249440512,-3283.99271428,0.00039798,2]
[321502061,1712249440576,-891.94868492,0.00039798,2]
[321502091,1712249443107,-999.36626444,0.00039798,2]
[321502092,1712249443481,-9348.02416142,0.00039798,2]
[321502104,1712249444220,-2849.22220706,0.00039798,2]
[321502105,1712249444247,-731.13211865,0.00039798,2]
[321502106,1712249444259,-3396.55,0.00039798,2]
[321502107,1712249444271,-1659.13582609,0.00039798,2]
[321502108,1712249444283,-67904.0,0.00039798,2]
[321502109,1712249444313,-793.77399854,0.00039798,2]
[321502110,1712249444325,-597.0170534,0.00039798,2]
[321502111,1712249444356,-1458.78306831,0.00039798,2]
[321502112,1712249444469,-19746.39819969,0.00039798,2]
[321502113,1712249444481,-3908.05134952,0.00039798,2]
[321502114,1712249444517,-1718.2306774,0.00039798,2]
[321502123,1712249446132,-424.23232374,0.00039797,4]
[321502124,1712249446141,-552.82954974,0.00039797,4]
[321502125,1712249446151,-338.9828605,0.00039797,4]
[321502126,1712249446160,-9147.85502042,0.00039798,2]
[321502127,1712249446172,-2790.55816222,0.00039798,2]
[321502128,1712249446191,-349.811,0.00039797,2]
[321502129,1712249446438,-150.189,0.00039797,2]
[321502130,1712249446449,-33883.0599068,0.00039798,2]
[321502131,1712249446731,-2066.06392,0.00039798,2]
[321502132,1712249446759,-852.84645389,0.00039798,2]
[321502133,1712249472779,6177.43446613,0.000154,2]
[321502134,1712249481538,652.91826248,0.0002459,3]
[321502135,1712249481900,531.78196143,9e-05,2]
[321502136,1712249487557,600.63404238,0.00018,2]
[321502137,1712249500371,479.50283438,0.00011,2]
[321502138,1712249500392,2000.0,0.00011,2]
[321502139,1712249500414,1823.41623265,0.00011,2]
[321502140,1712249512135,176.58376735,0.0002,2]
[321502141,1712249512157,112.70929766,0.0002,2]
[321502144,1712249552345,590.92939315,0.00015,2]
[321502148,1712249584124,1456.33844801,0.00015,2]
[321502149,1712249590202,7352.73215884,0.000225,2]
[321502150,1712249590223,1887.29070234,0.000225,2]
[321502151,1712249590243,2000.0,0.000225,2]
[321502152,1712249590263,2000.0,0.000225,2]
[321502153,1712249590284,2000.0,0.000225,2]
[321502154,1712249590305,2000.0,0.000225,2]
[321502155,1712249590325,2000.0,0.000225,2]
[321502156,1712249590346,2000.0,0.000225,2]
[321502157,1712249590367,2000.0,0.000225,2]
[321502158,1712249590387,2000.0,0.000225,2]
[321502159,1712249590407,2000.0,0.000225,2]
[321502160,1712249590428,2000.0,0.000225,2]
[321502161,1712249590450,2000.0,0.000225,2]
[321502162,1712249590470,1716.18562641,0.000225,2]
[321502166,1712249629758,283.81437359,0.0002,2]
[321502167,1712249629778,561.92820849,0.0002,2]
[321502172,1712249659869,1000.0,0.000135,2]
[321502173,1712249659974,286.056248,0.000125,2]
[321502175,1712249674267,152.01554351,0.00018,2]
[321502176,1712249674287,500.34536637,0.00018,2]
[321502179,1712249682528,1499.65463363,0.0002,2]
[321502180,1712249682553,1044.32085105,0.0002,2]
[321502181,1712249682898,955.67914895,0.0002301,2]
[321502182,1712249682920,2000.0,0.0002301,2]
[321502183,1712249682941,2000.0,0.0002301,2]
[321502184,1712249682964,2000.0,0.0002301,2]
[321502185,1712249682986,2000.0,0.0002301,2]
[321502186,1712249683009,1317.87223105,0.0002301,2]
[321502192,1712249772134,682.12776895,0.00023033,5]
[321502193,1712249772156,326.39593109,0.00023033,5]
[321502194,1712249791188,1673.60406891,0.0002301,2]
[321502195,1712249791209,531.45844223,0.0002301,2]
[321502196,1712249796677,155.35137463,0.0002301,2]
[321502197,1712249801327,1313.19018314,0.0002301,2]
[321502201,1712249962561,2844.70550916,0.00023001,2]
[321502203,1712249967732,10900.74298344,0.0002291,2]
[321502204,1712249976770,367.76776002,0.00023001,2]
[321502206,1712249988733,317.14986406,0.0002291,2]
[321502207,1712250001712,42470.12951744,0.00023001,2]
[321502209,1712250013894,921928.71652896,0.00023001,2]
[321502210,1712250015663,8850.91257549,0.00023001,2]
[321502212,1712250029382,448898.39084132,0.00023001,2]
[321502216,1712250051088,389.92773381,0.00023001,2]
[321502220,1712250073802,1000.0,0.00023001,2]
[321502221,1712250092923,2844.70550916,0.00023001,2]
[321502252,1712250202311,873.58012051,0.00023001,2]
[321502253,1712250223449,2844.70550916,0.00023001,2]
[321502258,1712250351965,2844.70550916,0.00023001,2]
[321502260,1712250381377,951.09006179,0.00021851,2]
[321502261,1712250384045,775.73452015,0.00023001,2]
[321502262,1712250384917,322.73789507,0.00023001,2]
[321502263,1712250385494,938.37870965,0.00023001,2]
[321502264,1712250387213,-747.88022358,0.00023002,2]
[321502265,1712250387234,-500.0,0.00023008,2]
[321502266,1712250387255,-359.97775389,0.0002301,2]
[321502267,1712250387384,295.82660405,0.00023001,2]
[321502268,1712250387739,96.31541848,0.00023001,2]
[321502269,1712250387764,9903.68458152,0.00023001,2]
[321502270,1712250392140,155.0,0.00023001,2]
[321502271,1712250405299,277.43587331,0.00021851,2]
[321502272,1712250406263,305.18987978,0.00022498,2]
[321502273,1712250432300,359.97775389,0.00023001,2]
[321502283,1712250632451,-168.82,0.00024579,2]
[321502284,1712250632460,-424.59505923,0.00024898,2]
[321502285,1712250632471,-383.30028106,0.00024898,2]
[321502286,1712250632482,-262.6784885,0.00024898,2]
[321502287,1712250632494,-418.24787121,0.00024898,2]
[321502288,1712250632503,-853.99212879,0.0002498,2]
[321502289,1712250632543,-1990.71338037,0.0002498,2]
[321502290,1712250632552,-2169.51814847,0.00024981,2]
[321502291,1712250632580,-307.07195653,0.00024981,2]
[321502292,1712250632589,-150.0,0.00024997,2]
[321502293,1712250632599,-1000.0,0.00024998,2]
[321502294,1712250632609,-199.56493157,0.00024998,2]
[321502295,1712250632618,-787.63019766,0.00024998,2]
[321502296,1712250632642,-399.11744912,0.00024998,2]
[321502306,1712250633128,-1129.45800176,0.00024998,2]
[321502307,1712250633137,-537.36536672,0.00024998,2]
[321502308,1712250633147,-173.86698683,0.00024998,2]
[321502309,1712250633156,-2005.68401977,0.00024999,2]
[321502310,1712250633165,-153.62562492,0.00025,2]
[321502311,1712250633177,-669.25583994,0.00025,2]
[321502312,1712250633188,-638.49582452,0.00025,2]
[321502336,1712250638847,-2844.70550916,0.00024897,2]
[321502337,1712250638857,-1735.68449084,0.00025,2]
[321502345,1712250640652,-74971.841741,0.00025,2]
[321502346,1712250640678,-281.25999984,0.00025,2]
[321502347,1712250640692,-677.33830406,0.00025,2]
[321502348,1712250640704,-706.64908554,0.00025,2]
[321502349,1712250640715,-254.82899998,0.00025,2]
[321502350,1712250640742,-749.0400001,0.00025,2]
[321502360,1712250643870,-6634.0392426,0.00025,2]
[321502363,1712250643880,-217.17007157,0.00025,4]
[321502364,1712250643889,-500.0,0.00025098,2]
[321502365,1712250643899,-483.93954193,0.00025098,2]
[321502366,1712250643910,-500.0,0.00025098,2]
[321502367,1712250643919,-500.0,0.00025098,2]
[321502368,1712250643929,-500.0,0.00025098,2]
[321502369,1712250643938,-500.0,0.00025098,2]
[321502370,1712250643947,-500.0,0.00025098,2]
[321502372,1712250643956,-500.0,0.00025098,2]
[321502374,1712250643966,-13009.49840809,0.000251,2]
[321502376,1712250643975,-3160.74718481,0.000251,2]
[321502377,1712250643985,-6932.629999,0.0002511,2]
[321502378,1712250643994,-4226.28464232,0.00026,2]
[321502379,1712250644003,-499.99,0.00026,2]
[321502380,1712250644013,-37034.83382172,0.000263,2]
[321502381,1712250644022,-1431.89,0.00027356,2]
[321502382,1712250644031,-210.0,0.00027497,2]
[321502384,1712250644041,-200.0,0.00029304,2]
[321502385,1712250644050,-1431.89,0.00029619,2]
[321502386,1712250644059,-3206.28076084,0.0003,2]
[321502387,1712250644067,-8759.51396527,0.0003,4]
[321502388,1712250644076,-3000.0,0.0003,2]
[321502389,1712250644085,-3000.0,0.0003001,2]
[321502390,1712250644094,-3000.0,0.0003002,2]
[321502391,1712250644104,-3000.0,0.0003003,2]
[321502392,1712250644114,-3000.0,0.0003004,2]
[321502393,1712250644124,-3000.0,0.0003005,2]
[321502394,1712250644133,-3000.0,0.0003006,2]
[321502395,1712250644143,-3000.0,0.0003007,2]
[321502396,1712250644153,-3000.0,0.0003008,2]
[321502397,1712250644162,-3000.0,0.0003009,2]
[321502398,1712250644171,-3000.0,0.000301,2]
[321502399,1712250644181,-3000.0,0.0003011,2]
[321502400,1712250644191,-3000.0,0.0003012,2]
[321502401,1712250644201,-4910.47469,0.0003013,2]
[321502402,1712250644211,-410.3,0.00030694,2]
[321502403,1712250644221,-535.08,0.00030724,2]
[321502404,1712250644232,-23900.0,0.00030927,2]
[321502405,1712250644242,-1000.0,0.00031165,2]
[321502406,1712250644251,-200.0,0.00031255,2]
[321502407,1712250644261,-250.0,0.00031589,2]
[321502408,1712250644271,-250.0,0.0003162,2]
[321502409,1712250644281,-167.0,0.0003165,2]
[321502410,1712250644290,-300.94,0.00031769,2]
[321502411,1712250644300,-1431.89,0.00031883,2]
[321502412,1712250644310,-160.05,0.00031884,120]
[321502413,1712250644320,-2703.68921749,0.0003209,4]
[321502414,1712250644330,-374.0,0.000323,2]
[321502415,1712250644339,-3073.81,0.00032603,2]
[321502416,1712250644349,-156.25,0.00032877,2]
[321502417,1712250644361,-156.25,0.00032877,2]
[321502418,1712250644370,-151.31,0.00032877,2]
[321502419,1712250644380,-250.0,0.00033484,112]
[321502420,1712250644390,-151.31,0.00034141,2]
[321502421,1712250644399,-1431.89,0.00034147,2]
[321502422,1712250644408,-151.0,0.00034546,2]
[321502423,1712250644417,-169.63,0.00034962,2]
[321502424,1712250644426,-826.52797548,0.00035,2]
[321502425,1712250644436,-204.63259374,0.00035,2]
[321502426,1712250644446,-204.63259374,0.00035,2]
[321502427,1712250644455,-204.63259374,0.00035,2]
[321502428,1712250644465,-1000.0,0.00035061,2]
[321502429,1712250644475,-151.31,0.00035406,2]
[321502430,1712250644484,-167.0,0.00035606,2]
[321502431,1712250644494,-611.35104216,0.00036,2]
[321502432,1712250644503,-171.89,0.00036401,2]
[321502433,1712250644513,-1431.89,0.00036411,2]
[321502434,1712250644523,-151.31,0.0003667,2]
[321502435,1712250644532,-169.63,0.00036816,2]
[321502436,1712250644541,-326.45000084,0.00036899,4]
[321502437,1712250644551,-4707.6061275,0.00036899,4]
[321502438,1712250644561,-3326.05915654,0.00036899,4]
[321502439,1712250644570,-1600.45488383,0.000369,5]
[321502440,1712250644579,-317.14986405,0.000369,2]
[321502441,1712250644589,-1055.89620472,0.00037,2]
[321502442,1712250644599,-698.62632438,0.00037,2]
[321502443,1712250644612,-45551.58784584,0.00037,2]
[321502444,1712250644622,-16213.13683769,0.00037,4]
[321502445,1712250644632,-250.0,0.00037,3]
[321502446,1712250644641,-151.31,0.00037935,2]
[321502447,1712250644651,-2125.34,0.00038027,15]
[321502448,1712250644661,-610.61814086,0.00038186,10]
[321502449,1712250644671,-151.0,0.00038385,2]
[321502450,1712250644680,-250.49088,0.00038385,2]
[321502451,1712250644689,-317.14986405,0.00038508,2]
[321502452,1712250644699,-169.63,0.00038671,2]
[321502453,1712250644709,-1431.89,0.00038675,2]
[321502454,1712250644718,-275.5,0.000389,2]
[321502455,1712250644727,-1000.0,0.00038957,2]
[321502456,1712250644737,-1177.54141214,0.00038989,2]
[321502457,1712250644746,-1076573.53162999,0.00038989,2]
[321502470,1712250646537,-442.79907125,0.00038988,15]
[321502471,1712250646550,-3164.74304251,0.00038989,2]
[321502472,1712250646655,-3694.06375328,0.00038989,2]
[321502475,1712250656377,291.14428943,0.00023001,2]
[321502487,1712251831501,-155.0,0.00023899,2]
[321502488,1712251831510,-1940.82997844,0.00023899,2]
[321502489,1712251831619,-903.87553072,0.00023899,2]
[321502490,1712251831630,-441.05698349,0.000239,2]
[321502491,1712251831639,-176.99284116,0.00024,2]
[321502492,1712251831649,-150.0,0.00028526,2]
[321502493,1712251831659,-3153.81871926,0.00028527,2]
[321502494,1712251831668,-3206.28076084,0.0003,2]
[321502495,1712251831677,-179.058338,0.00030959,14]
[321502496,1712251831686,-999.99,0.00031781,2]
[321502497,1712251831696,-150.99,0.00031781,2]
[321502498,1712251831705,-445.43,0.00031781,2]
[321502499,1712251831714,-8424.82,0.00031781,2]
[321502500,1712251831723,-1280.6,0.00031781,2]
[321502501,1712251831734,-499.99,0.00031781,2]
[321502502,1712251831742,-156.25,0.00032877,2]
[321502503,1712251831754,-156.25,0.00032877,2]
[321502504,1712251831764,-1326.64,0.00033611,2]
[321502505,1712251831775,-151.0,0.00033893,4]
[321502506,1712251831786,-151.0,0.00034585,2]
[321502507,1712251831798,-200.0,0.00034819,2]
[321502508,1712251831807,-250.0,0.00034874,112]
[321502509,1712251831816,-600.0,0.00034888,2]
[321502510,1712251831826,-706.84,0.00034913,2]
[321502511,1712251831835,-151.38,0.00035226,2]
[321502512,1712251831844,-6658.55,0.00035278,2]
[321502513,1712251831853,-167.0,0.00035333,2]
[321502515,1712251831863,-248.14,0.00035361,2]
[321502517,1712251831875,-3273.51,0.0003539,2]
[321502518,1712251831886,-150.0,0.00035399,2]
[321502519,1712251831898,-610.24616245,0.00035403,2]
[321502520,1712251831907,-23900.0,0.00035413,2]
[321502521,1712251831917,-2561.5,0.00035426,2]
[321502523,1712251831926,-250.0,0.0003549,2]
[321502526,1712251831935,-870.5,0.00035524,2]
[321502529,1712251831944,-1424.89,0.00035524,2]
[321502532,1712251831953,-255.05833915,0.000357,10]
[321502535,1712251831962,-151.55,0.00035795,2]
[321502538,1712251831971,-1326.64,0.00035875,2]
[321502540,1712251831980,-151.55,0.0003592,2]
[321502542,1712251831989,-400.0,0.00035983,2]
[321502544,1712251831998,-151.55,0.00036044,2]
[321502546,1712251832007,-151.55,0.00036168,2]
[321502548,1712251832016,-562.88,0.00036256,2]
[321502550,1712251832026,-5006.58,0.00036292,2]
[321502552,1712251832035,-151.55,0.00036293,2]
[321502554,1712251832045,-160.05,0.00036394,120]
[321502556,1712251832054,-151.55,0.00036417,2]
[321502558,1712251832063,-151.55,0.00036541,2]
[321502559,1712251832072,-1000.0,0.000366,7]
[321502561,1712251832081,-151.55,0.00036666,2]
[321502564,1712251832091,-151.38,0.00036716,2]
[321502566,1712251832100,-193.4,0.0003677,2]
[321502567,1712251832109,-392.63,0.00036782,2]
[321502569,1712251832118,-151.55,0.0003679,2]
[321502571,1712251832127,-392.63,0.00036792,2]
[321502573,1712251832136,-392.63,0.00036801,2]
[321502576,1712251832146,-392.63,0.00036811,2]
[321502577,1712251832155,-392.63,0.00036821,2]
[321502580,1712251832164,-392.63,0.0003683,2]
[321502582,1712251832174,-392.63,0.0003684,2]
[321502583,1712251832185,-392.63,0.0003685,2]
[321502584,1712251832195,-392.63,0.00036859,2]
[321502585,1712251832205,-392.63,0.00036869,2]
[321502586,1712251832214,-392.63,0.00036879,2]
[321502587,1712251832224,-392.63,0.00036888,2]
[321502588,1712251832234,-825.16619437,0.00036898,4]
[321502589,1712251832244,-392.63,0.00036898,2]
[321502590,1712251832252,-500.0,0.00036899,15]
[321502591,1712251832262,-500.0,0.00036899,15]
[321502592,1712251832273,-500.0,0.00036899,15]
[321502593,1712251832282,-341.0539033,0.00036899,15]
[321502594,1712251832293,-500.0,0.00036899,15]
[321502595,1712251832302,-500.0,0.00036899,15]
[321502596,1712251832311,-500.0,0.00036899,15]
[321502597,1712251832320,-500.0,0.00036899,15]
[321502598,1712251832330,-500.0,0.00036899,15]
[321502599,1712251832342,-500.0,0.00036899,15]
[321502600,1712251832351,-500.0,0.00036899,15]
[321502601,1712251832362,-499.99999999,0.00036899,15]
[321502602,1712251832371,-3714.1249,0.000369,2]
[321502603,1712251832381,-24536.12855299,0.000369,2]
[321502604,1712251832390,-14506.50245541,0.000369,2]
[321502605,1712251832400,-392.63,0.00036908,2]
[321502606,1712251832410,-151.55,0.00036914,2]
[321502607,1712251832420,-392.63,0.00036917,2]
[321502608,1712251832429,-392.63,0.00036927,2]
[321502609,1712251832439,-392.63,0.00036937,2]
[321502610,1712251832448,-392.63,0.00036946,2]
[321502611,1712251832458,-392.63,0.00036956,2]
[321502612,1712251832467,-392.63,0.00036966,2]
[321502613,1712251832476,-1428.74162171,0.00037,2]
[321502614,1712251832486,-58039.20333426,0.00037,2]
[321502615,1712251832497,-1114.41200181,0.00037,2]
[321502616,1712251832507,-151.55,0.00037039,2]
[321502617,1712251832516,-151.55,0.00037163,2]
[321502618,1712251832526,-167.12,0.00037276,2]
[321502619,1712251832535,-151.55,0.00037287,2]
[321502620,1712251832544,-1000.0,0.000373,7]
[321502621,1712251832554,-151.55,0.00037412,2]
[321502622,1712251832564,-151.55,0.00037536,2]
[321502623,1712251832574,-151.55,0.00037661,2]